bitfinex/quotes_ETHUSD_20241105
["timestamp","ask_amount","ask_price","bid_price","bid_amount"]
[1730800710842,4.10105,2438.4,2438.2,0.34013411]
[1730800711027,4.10105,2438.4,2438.1,0.4599]
[1730800711367,4.10105,2438.4,2438.2,0.34013383]
[1730800711576,4.10105,2438.4,2438.1,0.4599]
[1730800711741,4.10105,2438.4,2438.2,0.34014204]
[1730800711742,4.10132,2438.3,2438.2,0.34014204]
[1730800711938,4.10105,2438.4,2438.2,0.34014204]
[1730800712141,4.10105,2438.4,2438.1,0.4599]
[1730800712337,4.10105,2438.4,2438.3,0.08302869]
[1730800712540,4.10105,2438.4,2438.1,0.4599]
[1730800712959,4.10105,2438.4,2438.2,0.42316201]
[1730800713164,4.18309747,2438.4,2438.2,0.08302869]
[1730800713730,4.90851,2438.3,2438.2,0.08302869]
[1730800713885,4.90851,2438.3,2438.2,0.42319236]
[1730800714081,4.99055747,2438.3,2438.2,0.34016367]
[1730800714382,4.99055747,2438.3,2438.2,0.4230678]
[1730800715482,0.8073,2438.3,2438.2,0.4230678]
[1730800716190,4.90851,2438.3,2438.2,0.4230678]
[1730800716338,4.99055747,2438.3,2438.2,0.08290413]
[1730800716535,4.99055747,2438.3,2438.2,0.34021126]
[1730800716939,4.99055747,2438.3,2438.2,0.42311539]
[1730800718595,4.90851,2438.3,2438.2,0.42311539]
[1730800720683,4.90851,2438.3,2438.2,0.42324303]
[1730800723510,0.8073,2438.3,2438.2,0.42324303]
[1730800723878,4.90851,2438.3,2438.2,0.42324303]
[1730800724712,4.99055747,2438.3,2438.2,0.42324303]
[1730800725520,4.99055747,2438.3,2438.2,0.96823269]
[1730800725924,4.99055747,2438.3,2438.2,0.42324303]
[1730800726103,5.91072122,2438.3,2438.2,0.42324303]
[1730800726319,7.21285316,2438.3,2438.2,0.42324303]
[1730800726618,4.1018,2438.0,2437.7,0.5451221]
[1730800726821,0.08204747,2437.9,2437.8,0.88581132]
[1730800726973,8.20362,2438.0,2437.8,0.96612992]
[1730800727178,8.20362,2438.0,2437.9,0.88581132]
[1730800727179,4.1018,2438.0,2437.9,0.88581132]
[1730800727619,4.1018,2438.0,2437.9,0.96612992]
[1730800728117,4.1018,2438.0,2437.9,0.62550903]
[1730800728293,4.1018,2438.0,2437.9,2.05675338]
[1730800728497,4.1018,2438.0,2437.9,2.39757083]
[1730800729210,4.18384747,2438.0,2437.9,2.39757083]
[1730800732132,4.18384747,2438.0,2437.9,1.5114402]
[1730800732288,4.18384747,2438.0,2437.9,2.40022428]
[1730800733828,4.18384747,2438.0,2437.9,0.96910268]
[1730800735105,4.95604747,2438.0,2437.9,0.96910268]
[1730800736117,4.95604747,2438.0,2437.9,0.0803186]
[1730800736323,4.95604747,2438.0,2437.9,0.9689145]
[1730800736542,4.95604747,2438.0,2437.9,0.8885959]
[1730800736841,4.95604747,2438.0,2437.9,0.9689145]
[1730800739559,5.87380822,2438.0,2437.9,0.9689145]
[1730800739714,5.87380822,2438.0,2437.9,0.42208428]
[1730800739916,5.87380822,2438.0,2437.9,0.34176568]
[1730800741310,4.96604747,2438.0,2437.9,0.34176568]
[1730800741513,4.96604747,2438.0,2437.9,0.42004167]
[1730800741714,4.96604747,2438.0,2437.9,0.34176568]
[1730800743809,4.10224,2437.7,2437.5,0.7137286]
[1730800744147,4.10224,2437.7,2437.6,0.07827599]
[1730800744734,4.10252,2437.6,2437.3,0.4599]
[1730800744928,4.10252,2437.6,2437.2,1.06759636]
[1730800744929,4.11273,2437.4,2437.2,1.06759636]
[1730800745145,4.10306,2437.2,2436.9,1.31943691]
[1730800745338,4.10306,2437.2,2436.9,0.4599]
[1730800745834,4.12251,2437.6,2437.1,0.4599]
[1730800746034,4.18468747,2437.5,2437.2,0.25309225]
[1730800746842,4.18468747,2437.5,2437.2,0.4202295]
[1730800748683,4.18468747,2437.5,2437.3,0.5466211]
[1730800749085,4.18444747,2437.6,2437.4,0.4599]
[1730800749573,4.10256,2437.5,2437.4,0.4599]
[1730800750085,4.18460747,2437.5,2437.4,0.4599]
[1730800750783,4.10256,2437.5,2437.4,0.4599]
[1730800751485,4.1124,2437.6,2437.4,0.4599]
[1730800751948,4.19444747,2437.6,2437.4,0.66714242]
[1730800752141,4.10256,2437.5,2437.4,0.66714242]
[1730800757084,4.10256,2437.5,2437.4,1.55542962]
[1730800757251,4.10256,2437.5,2437.4,1.62644519]
[1730800761067,4.10256,2437.5,2437.4,0.73815799]
[1730800761263,4.10256,2437.5,2437.4,1.41892582]
[1730800762797,4.18460747,2437.5,2437.4,1.41892582]
[1730800763365,4.10256,2437.5,2437.4,1.41892582]
[1730800763555,4.18460747,2437.5,2437.4,0.95902582]
[1730800764819,4.18460747,2437.5,2437.4,0.07101557]
[1730800764951,4.18460747,2437.5,2437.4,0.88815979]
[1730800765398,4.18460747,2437.5,2437.4,0.95917536]
[1730800768255,4.10256,2437.5,2437.4,0.95917536]
[1730800768455,4.10256,2437.5,2437.4,0.95986308]
[1730800772424,4.18460747,2437.5,2437.4,0.95986308]
[1730800773218,4.10256,2437.5,2437.4,0.95986308]
[1730800776294,4.18460747,2437.5,2437.4,0.95986308]
[1730800777291,4.18460747,2437.5,2437.4,0.96090589]
[1730800783392,4.94740747,2437.5,2437.4,1.12815114]
[1730800783689,4.94740747,2437.5,2437.4,0.96090589]
[1730800785435,4.94740747,2437.5,2437.4,1.12827082]
[1730800785937,4.94740747,2437.5,2437.4,0.96090589]
[1730800786691,4.94740747,2437.5,2437.4,0.96076096]
[1730800787123,4.94740747,2437.5,2437.4,0.96076288]
[1730800788321,4.94740747,2437.5,2437.4,1.12815295]
[1730800788648,4.94740747,2437.5,2437.4,0.96076288]
[1730800790375,4.94740747,2437.5,2437.4,1.12815817]
[1730800790578,4.94740747,2437.5,2437.4,1.12798837]
[1730800790745,4.94740747,2437.5,2437.4,0.96059609]
[1730800792689,4.94740747,2437.5,2437.4,1.12797007]
[1730800792972,4.94740747,2437.5,2437.4,1.12796604]
[1730800793274,4.94740747,2437.5,2437.4,0.96059609]
[1730800793487,6.0239357,2437.5,2437.4,0.96059609]
[1730800793775,7.72939054,2437.5,2437.4,0.41315995]
[1730800793937,7.72939054,2437.5,2437.4,0.34214438]
[1730800794131,7.72939054,2437.5,2436.7,0.85953691]
[1730800794132,4.10357,2436.9,2436.7,0.85953691]
[1730800794371,4.10357,2436.9,2436.8,3.02575824]
[1730800794680,4.10357,2436.9,2436.8,3.1706358]
[1730800796346,4.10357,2436.9,2436.8,2.10161062]
[1730800797607,4.10357,2436.9,2436.8,1.04470663]
[1730800797811,4.10357,2436.9,2436.8,1.38780691]
[1730800797986,4.10357,2436.9,2436.8,2.10006304]
[1730800798376,4.10357,2436.9,2436.8,1.38767746]
[1730800799073,4.10357,2436.9,2436.8,2.09983205]
[1730800799480,4.10357,2436.9,2436.8,1.38767746]
[1730800799986,4.10357,2436.9,2436.8,1.38757783]
[1730800800921,4.10357,2436.9,2436.8,0.33202318]
[1730800801224,4.10357,2436.9,2436.8,1.38767082]
[1730800802219,4.11308,2437.2,2436.8,2.74710276]
[1730800802422,4.10331,2437.1,2436.9,1.89704738]
[1730800802739,4.10331,2437.1,2437.0,0.88845921]
[1730800803428,4.18535747,2437.1,2437.0,0.88845921]
[1730800803781,4.1034,2437.0,2436.9,0.4599]
[1730800804065,4.10357,2436.9,2436.8,0.33202318]
[1730800804226,4.10357,2436.9,2436.8,0.84084582]
[1730800804519,4.10357,2436.9,2436.8,1.38750639]
[1730800804888,4.10357,2436.9,2436.8,0.33202318]
[1730800805087,4.10357,2436.9,2436.8,1.22034565]
[1730800806336,4.1034,2437.0,2436.8,1.22034565]
[1730800806480,4.1034,2437.0,2436.9,0.88832247]
[1730800807095,4.18544747,2437.0,2436.9,0.88832247]
[1730800807879,4.10357,2436.9,2436.8,0.07114895]
[1730800808229,4.10357,2436.9,2436.8,0.95941999]
[1730800809890,4.18561747,2436.9,2436.8,0.95941999]
[1730800811667,4.19561747,2436.9,2436.8,0.95941999]
[1730800813044,4.11357,2436.9,2436.8,0.95941999]
[1730800813243,4.19561747,2436.9,2436.8,0.95941999]
[1730800814436,4.19561747,2436.9,2436.8,0.07114895]
[1730800815266,5.10315922,2436.9,2436.8,0.07114895]
[1730800816086,5.10315922,2436.9,2436.8,0.61794145]
[1730800816387,4.19561747,2436.9,2436.8,0.61794145]
[1730800816585,4.19561747,2436.9,2436.8,0.95968356]
[1730800817263,4.96581747,2436.9,2436.8,0.95968356]
[1730800818275,4.96581747,2436.9,2436.8,0.07114895]
[1730800818473,4.96581747,2436.9,2436.8,0.41295177]
[1730800818782,4.96581747,2436.9,2436.8,0.41374334]
[1730800819302,5.87373922,2436.9,2436.8,0.41374334]
[1730800822389,5.87373922,2436.9,2436.8,0.07194052]
[1730800822592,4.10398,2436.7,2436.4,1.42008177]
[1730800822797,0.08204747,2436.6,2436.4,1.42008177]
[1730800823208,4.18622747,2436.6,2436.4,1.42008177]
[1730800823501,4.18622747,2436.6,2436.4,0.06064983]
[1730800824201,0.08204747,2436.6,2436.4,0.06064983]
[1730800824906,4.18612747,2436.6,2436.4,0.06064983]
[1730800825461,4.10424,2436.5,2436.4,0.06064983]
[1730800825661,4.94527875,2436.5,2436.4,0.06064983]
[1730800825909,5.86052622,2436.5,2436.4,0.06064983]
[1730800826205,5.86052622,2436.5,2436.4,0.94964947]
[1730800826910,5.02948747,2436.5,2436.4,0.94964947]
[1730800829191,5.02948747,2436.5,2436.4,0.4025708]
[1730800831709,5.02948747,2436.5,2436.4,0.47496505]
[1730800831881,5.02948747,2436.5,2436.4,0.4025708]
[1730800832213,5.02948747,2436.5,2436.4,0.47496505]
[1730800833110,5.94284622,2436.5,2436.4,0.4025708]
[1730800833523,5.94284622,2436.5,2436.4,0.40210722]
[1730800833692,5.02948747,2436.5,2436.4,0.40210722]
[1730800834091,5.02948747,2436.5,2436.4,0.40210389]
[1730800835098,5.02948747,2436.5,2436.4,0.47449814]
[1730800838218,5.02948747,2436.5,2436.4,1.02107051]
[1730800840881,0.01,2436.5,2436.4,1.02107051]
[1730800841086,0.09204747,2436.6,2436.5,0.4599]
[1730800841332,0.09204747,2436.6,2436.5,0.88802643]
[1730800841333,4.10407,2436.6,2436.5,0.88802643]
[1730800841535,4.11407,2436.6,2436.5,0.96100798]
[1730800841818,4.10407,2436.6,2436.5,0.96100798]
[1730800842028,0.01,2436.6,2436.5,0.96100798]
[1730800842804,4.11407,2436.6,2436.5,0.96100798]
[1730800842987,4.94506275,2436.6,2436.5,0.96100798]
[1730800843194,4.11407,2436.6,2436.5,0.89143014]
[1730800843430,4.19611747,2436.6,2436.5,0.41428432]
[1730800843732,0.08204747,2436.6,2436.5,0.87418432]
[1730800843887,0.01,2436.8,2436.5,5.52832723]
[1730800844091,0.01,2436.8,2436.6,1.45034468]
[1730800844325,0.01,2436.8,2436.7,0.89144697]
[1730800844537,0.01,2436.8,2436.7,0.96421494]
[1730800844827,0.01,2436.8,2436.7,0.07276797]
[1730800845129,0.01,2436.8,2436.7,0.89360735]
[1730800845289,0.01,2436.8,2436.7,0.96637532]
[1730800846452,0.01,2436.8,2436.7,1.65537005]
[1730800847044,0.01,2436.8,2436.7,0.96637532]
[1730800848153,0.09204747,2436.9,2436.7,0.96637532]
[1730800848334,0.08204747,2436.9,2436.8,1.00967752]
[1730800848646,0.09204747,2437.1,2436.8,1.42598548]
[1730800848828,0.09204747,2437.1,2436.9,0.34360788]
[1730800848829,0.01,2437.0,2436.9,0.34360788]
[1730800849035,0.01,2437.0,2436.9,0.96572385]
[1730800849330,0.01,2437.0,2436.9,0.41595203]
[1730800849960,4.1134,2437.0,2436.9,0.41595203]
[1730800850240,5.02278775,2437.0,2436.9,0.41595203]
[1730800850544,0.01,2436.8,2436.5,0.54974151]
[1730800850729,4.10393,2436.7,2436.6,0.89332581]
[1730800850920,4.20579747,2436.8,2436.6,0.9655276]
[1730800851116,4.20579747,2436.8,2436.7,0.3435843]
[1730800851633,4.20579747,2436.8,2436.7,0.96555116]
[1730800853918,0.09204747,2436.8,2436.7,0.96555116]
[1730800854229,0.02,2436.8,2436.7,0.96555116]
[1730800854420,0.10204747,2436.8,2436.7,0.96555116]
[1730800856016,0.10204747,2436.8,2436.7,0.96559731]
[1730800856329,0.10204747,2436.8,2436.7,0.07220179]
[1730800856533,0.10204747,2436.8,2436.7,0.96557689]
[1730800856777,0.10204747,2436.8,2436.7,0.8933751]
[1730800857030,0.10204747,2436.8,2436.7,0.96561248]
[1730800859061,0.10204747,2436.8,2436.7,0.07223738]
[1730800859361,4.20578747,2436.8,2436.7,0.89341996]
[1730800859567,4.20578747,2436.8,2436.7,0.96563064]
[1730800860127,4.20578747,2436.8,2436.7,0.96565229]
[1730800860340,4.19578747,2436.8,2436.7,0.96565229]
[1730800860538,4.20578747,2436.8,2436.7,0.96565229]
[1730800860741,0.10204747,2436.8,2436.7,0.96565229]
[1730800861468,4.20578747,2436.8,2436.7,0.96565229]
[1730800861638,0.10204747,2436.8,2436.7,0.96565229]
[1730800861987,4.20578747,2436.8,2436.7,0.96565229]
[1730800862270,5.82062522,2436.8,2436.7,0.41584018]
[1730800862762,5.82062522,2436.8,2436.7,0.07221068]
[1730800862962,5.03672522,2436.8,2436.7,0.41587281]
[1730800863256,5.03672522,2436.8,2436.4,0.06064983]
[1730800863257,4.12424,2436.5,2436.4,0.06064983]
[1730800863461,4.20628747,2436.5,2436.4,0.40435506]
[1730800863664,4.20628747,2436.5,2436.4,0.95427604]
[1730800864024,4.20628747,2436.5,2436.4,0.40435506]
[1730800864462,4.12424,2436.5,2436.4,0.40435506]
[1730800864667,4.20628747,2436.5,2436.4,0.40435506]
[1730800865017,4.20628747,2436.5,2436.4,0.47649456]
[1730800865571,4.12424,2436.5,2436.4,0.47649456]
[1730800865861,0.02,2436.5,2436.4,1.0263925]
[1730800866258,4.12424,2436.5,2436.4,0.47649456]
[1730800866422,4.54485375,2436.5,2436.4,0.47645449]
[1730800866625,4.62690122,2436.5,2436.4,0.13278933]
[1730800866862,4.62690122,2436.5,2436.4,0.47644262]
[1730800867061,4.20628747,2436.5,2436.4,0.47644262]
[1730800868884,4.99798747,2436.5,2436.4,0.47644262]
[1730800870187,4.99798747,2436.5,2436.4,1.02607818]
[1730800870473,4.99798747,2436.5,2436.4,0.47636008]
[1730800870687,4.99798747,2436.5,2436.4,0.40422058]
[1730800870853,6.21468389,2436.5,2436.4,0.06064983]
[1730800873276,9.21468389,2436.5,2436.4,0.06064983]
[1730800873481,9.14263642,2436.5,2436.4,0.06064983]
[1730800873785,10.84809126,2436.5,2436.4,0.06064983]
[1730800877687,10.84809126,2436.5,2436.2,7.5e-06]
[1730800877688,3.04,2436.3,2436.2,7.5e-06]
[1730800877856,10.89739405,2436.3,2436.2,7.5e-06]
[1730800878051,12.52166386,2436.3,2436.2,7.5e-06]
[1730800878250,11.14223192,2436.3,2436.2,7.5e-06]
[1730800878452,9.43591464,2436.3,2436.2,7.5e-06]
[1730800879651,6.43591464,2436.3,2436.2,7.5e-06]
[1730800879850,6.43591464,2436.3,2436.2,0.06632106]
[1730800879851,4.97142747,2436.3,2436.2,0.06632106]
[1730800882467,4.20622747,2436.3,2436.2,0.06632106]
[1730800893013,4.20622747,2436.3,2436.2,0.40983553]
[1730800895069,4.20622747,2436.3,2436.2,0.06632106]
[1730800895292,4.20622747,2436.3,2436.2,7.5e-06]
[1730800895575,5.37660405,2436.3,2436.2,7.5e-06]
[1730800896667,5.37660405,2436.3,2436.2,0.0582866]
[1730800896836,5.37660405,2436.3,2436.2,7.5e-06]
[1730800897957,6.15690405,2436.3,2436.2,7.5e-06]
[1730800899528,6.15690405,2436.3,2436.2,0.0582866]
[1730800899733,6.15690405,2436.3,2436.2,7.5e-06]
[1730800899973,6.15690405,2436.3,2436.2,0.0582866]
[1730800901382,6.15690405,2436.3,2436.2,0.34441584]
[1730800901675,6.15690405,2436.3,2436.2,0.34441247]
[1730800902010,6.15690405,2436.3,2436.2,0.34441262]
[1730800902214,6.15690405,2436.3,2436.2,7.5e-06]
[1730800902506,7.51633599,2436.3,2436.2,7.5e-06]
[1730800904117,7.51633599,2436.3,2436.2,0.0582866]
[1730800904319,7.51633599,2436.3,2436.2,7.5e-06]
[1730800905933,7.51633599,2436.3,2436.2,0.0582866]
[1730800906103,7.51633599,2436.3,2436.2,7.5e-06]
[1730800906302,7.51633599,2436.3,2436.2,0.34447521]
[1730800906890,7.51633599,2436.3,2436.2,0.34447579]
[1730800907237,7.51633599,2436.3,2436.2,7.5e-06]
[1730800908032,7.51633599,2436.3,2436.2,0.40286978]
[1730800908198,7.51633599,2436.3,2436.2,0.34448384]
[1730800908532,7.51633599,2436.3,2436.2,7.5e-06]
[1730800908746,9.22196944,2436.3,2436.2,7.5e-06]
[1730800908889,9.13992197,2436.3,2436.2,7.5e-06]
[1730800910001,7.43428852,2436.3,2436.2,7.5e-06]
[1730800910206,7.51633599,2436.3,2436.2,7.5e-06]
[1730800910601,9.22196944,2436.3,2436.2,7.5e-06]
[1730800910798,9.13992197,2436.3,2436.2,7.5e-06]
[1730800911410,7.43428852,2436.3,2436.2,0.34456]
[1730800911615,7.51633599,2436.3,2436.2,0.34456]
[1730800913003,9.22196944,2436.3,2436.2,7.5e-06]
[1730800913230,9.13992197,2436.3,2436.2,7.5e-06]
[1730800914223,9.13992197,2436.3,2436.2,0.05839344]
[1730800915230,9.13992197,2436.3,2436.2,7.5e-06]
[1730800916239,7.78049003,2436.3,2436.2,7.5e-06]
[1730800916544,7.8625375,2436.3,2436.2,0.05839344]
[1730800916714,7.8625375,2436.3,2436.2,7.5e-06]
[1730800917600,7.8625375,2436.3,2436.2,0.34452487]
[1730800917824,7.8625375,2436.3,2436.2,0.40291081]
[1730800918151,7.8625375,2436.3,2436.2,0.40290968]
[1730800918451,7.0822375,2436.3,2436.2,0.40290968]
[1730800919528,5.37660405,2436.3,2436.2,0.40290968]
[1730800921419,5.37660405,2436.3,2436.2,0.40389931]
[1730800921743,0.10164747,2436.3,2436.2,0.86379931]
[1730800921903,0.0196,2436.3,2436.2,1.41660799]
[1730800922401,0.0196,2436.3,2436.2,1.58609716]
[1730800923240,0.0196,2436.3,2436.2,1.41660799]
[1730800923437,0.0196,2436.3,2436.2,1.58609716]
[1730800923623,0.0196,2436.3,2436.2,1.41660799]
[1730800923829,0.0196,2436.3,2436.2,1.58609716]
[1730800924014,0.0196,2436.3,2436.2,1.41660799]
[1730800924209,0.0196,2436.3,2436.2,0.51829344]
[1730800924472,0.0196,2436.3,2436.2,1.41590656]
[1730800925851,4.10424,2436.5,2436.3,4.56448]
[1730800925852,0.09204747,2436.5,2436.3,4.56448]
[1730800926156,0.0096,2436.6,2436.5,0.4599]
[1730800926452,1.72523345,2437.1,2436.8,4.10374]
[1730800926656,0.10164747,2437.1,2437.0,4.1034]
[1730800926808,0.10164747,2437.1,2437.0,4.44863399]
[1730800926809,0.01,2437.1,2437.0,4.44863399]
[1730800927004,0.01,2437.1,2437.0,5.00046011]
[1730800927321,0.01,2437.1,2437.0,0.4033261]
[1730800927659,0.01,2437.1,2437.0,0.63686382]
[1730800927953,0.01,2437.1,2437.0,0.98134867]
[1730800928329,0.10164747,2437.3,2437.1,0.4599]
[1730800928646,0.10164747,2437.3,2437.2,0.05718417]
[1730800928844,0.0196,2437.3,2437.2,0.05718417]
[1730800929046,0.08204747,2437.4,2437.2,5.09047676]
[1730800929255,0.0196,2437.5,2437.2,5.09047676]
[1730800929256,0.0196,2437.5,2437.3,4.10289]
[1730800929620,0.0196,2437.5,2437.4,0.05718417]
[1730800929826,0.0196,2437.5,2437.2,0.93023259]
[1730800930048,0.0196,2437.5,2437.3,0.05718417]
[1730800930271,0.0196,2437.5,2437.2,0.93023259]
[1730800930571,0.10021181,2437.5,2437.4,0.05657905]
[1730800930723,0.10021181,2437.5,2437.1,4.56297]
[1730800930724,0.10021181,2437.5,2437.3,0.54932026]
[1730800930923,0.10021181,2437.5,2437.4,0.05657905]
[1730800932022,0.08204747,2437.5,2437.4,0.51647905]
[1730800932227,0.01816434,2437.7,2437.5,4.10255]
[1730800932228,0.01,2437.7,2437.5,4.10255]
[1730800932538,0.01,2437.7,2437.6,0.51846417]
[1730800933748,0.10021181,2437.9,2437.7,4.10221]
[1730800933946,0.01816434,2437.9,2437.7,4.10221]
[1730800934339,0.01816434,2437.9,2437.8,0.05656126]
[1730800934736,0.01816434,2437.9,2437.6,0.92180291]
[1730800934941,0.01816434,2437.5,2437.3,0.4599]
[1730800935186,4.12108434,2437.3,2437.1,0.4599]
[1730800935343,0.08204747,2437.2,2437.1,0.4599]
[1730800936558,0.10021181,2437.3,2437.1,0.4599]
[1730800938075,4.20314181,2437.3,2436.9,4.56347]
[1730800938275,0.10021181,2437.3,2436.9,0.4599]
[1730800938480,0.10021181,2437.3,2436.9,4.56347]
[1730800939676,0.10021181,2437.3,2436.9,8.66696]
[1730800939984,0.10021181,2437.3,2436.9,4.56339]
[1730800940140,4.20315181,2437.3,2437.0,0.05595631]
[1730800940674,0.10021181,2437.3,2437.0,0.05595631]
[1730800941444,4.10307,2437.2,2437.0,0.05595631]
[1730800941636,0.10021181,2437.1,2437.0,0.05595631]
[1730800942243,5.02094181,2437.1,2437.0,0.05595631]
[1730800942545,4.11217434,2436.7,2436.3,0.4599]
[1730800942878,0.08204747,2436.6,2436.3,0.4599]
[1730800943082,0.08204747,2436.6,2436.3,5.07802402]
[1730800943244,0.09021181,2436.7,2436.3,5.07802402]
[1730800943592,0.09021181,2436.7,2436.3,0.97349402]
[1730800943889,4.19412181,2436.7,2436.3,0.97349402]
[1730800944392,4.19412181,2436.7,2436.3,1.3163624]
[1730800944745,0.00816434,2436.5,2436.3,0.80276838]
[1730800944950,0.00816434,2436.5,2436.3,0.4599]
[1730800945152,0.09021181,2436.5,2436.3,0.80276838]
[1730800946256,0.09021181,2436.5,2436.4,0.34286838]
[1730800947152,0.10021181,2436.5,2436.3,0.4599]
[1730800947352,0.10021181,2436.5,2436.4,0.34332761]
[1730800948783,5.11705699,2436.5,2436.4,0.34332761]
[1730800949094,4.11458,2436.3,2436.2,7.5e-06]
[1730800949294,0.09204747,2436.3,2436.2,7.5e-06]
[1730800949592,0.08204747,2436.4,2436.2,7.5e-06]
[1730800949792,4.12240434,2436.5,2436.3,0.34364863]
[1730800949793,0.01816434,2436.5,2436.3,0.34364863]
[1730800949950,0.01816434,2436.5,2436.4,0.34364863]
[1730800950586,0.01816434,2436.5,2436.3,0.5457685]
[1730800950803,0.10021181,2436.7,2436.4,4.44808394]
[1730800950955,0.10021181,2436.7,2436.5,0.34367394]
[1730800951155,0.10021181,2436.7,2436.4,4.10441]
[1730800951494,0.10021181,2436.7,2436.6,0.4599]
[1730800952028,0.01816434,2436.7,2436.6,0.80369833]
[1730800952150,0.00816434,2436.7,2436.6,0.80369833]
[1730800953886,0.01816434,2436.7,2436.6,0.80369833]
[1730800954980,0.10021181,2436.7,2436.6,0.80369833]
[1730800955178,0.10021181,2436.7,2436.6,0.85907413]
[1730800955387,0.10021181,2436.7,2436.6,0.39917413]
[1730800955761,5.02632181,2436.7,2436.6,0.39917413]
[1730800955956,0.00816434,2436.7,2436.6,0.39917413]
[1730800956196,0.00816434,2436.7,2436.6,1.44609495]
[1730800956873,0.01816434,2436.9,2436.6,5.55016495]
[1730800957072,0.01816434,2436.9,2436.7,0.89452303]
[1730800957284,0.01816434,2436.9,2436.8,0.34379833]
[1730800957486,0.01816434,2436.9,2436.8,0.39898725]
[1730800957802,0.01816434,2436.9,2436.8,0.39938793]
[1730800958006,0.01816434,2436.9,2436.8,0.05518892]
[1730800958207,0.01816434,2436.9,2436.8,0.39938747]
[1730800958362,0.01816434,2436.9,2436.8,0.34419855]
[1730800958684,4.12173434,2436.9,2436.8,0.39938747]
[1730800959001,4.12173434,2436.9,2436.8,0.05518892]
[1730800959408,4.12173434,2436.9,2436.4,4.10432]
[1730800959564,0.08204747,2436.8,2436.4,4.10432]
[1730800959763,0.08204747,2436.8,2436.5,4.15933104]
[1730800960068,4.20378181,2436.9,2436.6,0.89491032]
[1730800960290,4.20378181,2436.9,2436.7,0.39900963]
[1730800960602,4.20378181,2436.9,2436.8,0.34419446]
[1730800961102,0.10021181,2436.9,2436.8,0.39900963]
[1730800961502,0.10021181,2436.9,2436.8,0.05481517]
[1730800961697,0.10021181,2436.9,2436.8,0.34427029]
[1730800961875,0.10021181,2436.9,2436.8,0.39908546]
[1730800963318,0.01816434,2436.9,2436.8,0.95027046]
[1730800963481,0.08204747,2437.0,2436.8,0.95027046]
[1730800963682,0.01816434,2437.1,2436.9,0.34427029]
[1730800964005,0.10021181,2437.1,2437.0,0.34427029]
[1730800964189,0.10021181,2437.1,2437.0,0.39908546]
[1730800964992,0.01816434,2437.1,2437.0,0.95073139]
[1730800965325,0.01816434,2437.1,2437.0,0.95160327]
[1730800969025,0.01816434,2437.3,2437.0,5.5340035]
[1730800969230,0.01,2437.3,2437.1,4.65513136]
[1730800969535,0.10021181,2437.5,2437.2,4.15777622]
[1730800969760,0.10021181,2437.5,2437.3,1.41241294]
[1730800969960,0.01816434,2437.5,2437.4,0.89670732]
[1730800970265,0.01816434,2437.5,2437.4,0.3994404]
[1730800971978,0.01816434,2437.7,2437.4,0.3994404]
[1730800972263,0.10021181,2437.7,2437.5,0.34489211]
[1730800972558,0.00816434,2437.7,2437.6,0.05416573]
[1730800972718,0.00816434,2437.7,2437.6,0.39870206]
[1730800975459,0.08204747,2437.8,2437.7,0.4599]
[1730800975659,0.00816434,2437.9,2437.7,1.02628702]
[1730800975861,0.01816434,2437.9,2437.8,0.34453633]
[1730800976067,0.00816434,2437.9,2437.8,0.34453633]
[1730800976222,0.00816434,2437.9,2437.8,0.39855086]
[1730800976854,4.20183181,2438.1,2437.8,0.39855086]
[1730800977059,0.09204747,2438.1,2437.8,0.05401453]
[1730800977310,0.00816434,2438.2,2437.8,5.05110882]
[1730800977517,0.00816434,2438.2,2437.9,4.4996122]
[1730800977675,0.00816434,2438.2,2438.0,4.4454865]
[1730800977875,0.00816434,2438.2,2438.1,0.0536944]
[1730800978489,0.00816434,2438.2,2437.9,4.56177]
[1730800978779,0.00816434,2438.2,2438.1,0.0536944]
[1730800978979,0.00816434,2438.2,2438.0,5.06296788]
[1730800979307,0.00816434,2438.2,2438.1,0.0536944]
[1730800979674,0.00816434,2438.2,2437.9,4.56177]
[1730800979890,0.00816434,2438.2,2438.0,0.0536944]
[1730800980388,0.00816434,2438.2,2438.0,0.57020674]
[1730800980783,0.00816434,2438.2,2438.0,0.91376161]
[1730800981409,0.00816434,2438.2,2438.0,0.57020674]
[1730800981615,0.00816434,2438.2,2438.0,0.91364791]
[1730800982526,0.00816434,2438.2,2438.0,0.57020674]
[1730800983031,0.00816434,2438.2,2438.0,0.0536944]
[1730800985103,0.00816434,2438.2,2438.0,4.4e-06]
[1730800985104,11.06017524,2438.1,2438.0,4.4e-06]
[1730800985328,0.01,2437.1,2436.9,0.34332842]
[1730800985536,0.09021181,2437.2,2436.9,0.34332842]
[1730800985745,0.01,2437.3,2437.0,0.5036692]
[1730800985908,0.00816434,2437.6,2437.1,8.54957842]
[1730800986099,0.09021181,2437.6,2437.2,1.24865318]
[1730800986297,0.01816434,2437.9,2437.3,4.10278]
[1730800986596,0.10021181,2437.9,2437.5,4.10244]
[1730800986803,0.10021181,2437.9,2437.4,0.04419598]
[1730800987103,0.01,2437.7,2437.5,0.04419598]
[1730800987333,0.09204747,2437.7,2437.5,0.04419598]
[1730800987843,0.01,2437.7,2437.5,0.04419598]
[1730800987997,0.09204747,2437.7,2437.5,0.04419598]
[1730800989032,4.19429747,2437.7,2437.5,0.04419598]
[1730800990508,4.1025,2437.6,2437.4,0.34356388]
[1730800990704,4.10256,2437.5,2437.4,0.34360182]
[1730800990941,4.10256,2437.5,2437.2,0.34360182]
[1730800991243,4.18482747,2437.4,2437.3,0.34360182]
[1730800992008,4.12072434,2437.5,2437.3,0.34360182]
[1730800992222,4.12072434,2437.5,2437.1,1.00966763]
[1730800992541,4.12072434,2437.5,2437.2,0.3437289]
[1730800992845,4.12072434,2437.5,2437.3,0.3437289]
[1730800993010,4.12072434,2437.5,2437.2,0.04417819]
[1730800993210,8.22341434,2437.5,2437.3,0.34373359]
[1730800993407,4.12072434,2437.5,2437.3,0.04417819]
[1730800993744,4.18477747,2437.4,2437.1,0.54976763]
[1730800993906,4.18477747,2437.4,2437.2,0.34385018]
[1730800994104,0.01,2437.1,2436.5,0.85739883]
[1730800994342,0.01816434,2437.1,2436.7,0.57319536]
[1730800994507,0.01816434,2437.1,2436.9,0.34397572]
[1730800994704,0.00816434,2437.1,2437.0,0.34398037]
[1730800995507,4.11139434,2437.1,2437.0,0.34398037]
[1730800995825,4.10344,2437.0,2436.8,0.38898005]
[1730800996051,0.08204747,2436.9,2436.8,0.93924044]
[1730800996259,0.08204747,2436.9,2436.8,0.73305158]
[1730800996462,0.08204747,2436.9,2436.8,1.28331197]
[1730800996765,0.08204747,2436.9,2436.8,0.73305158]
[1730800996974,4.11139434,2437.1,2436.8,1.28331197]
[1730800997196,4.11139434,2437.1,2436.9,0.34407153]
[1730800997334,4.11139434,2437.1,2437.0,0.34407153]
[1730800997831,0.00816434,2437.1,2437.0,0.34407153]
[1730800998276,0.00816434,2437.1,2437.0,0.89433192]
[1730800998432,0.00816434,2437.1,2437.0,0.34407153]